fUSD/lending_fUSD_20250618
["ID","MTS","AMOUNT","RATE_DAILY","PERIOD"]
[366426265,1750251046985,-780.05,0.00016438,2]
[366426266,1750251046995,-493.76815528,0.00016438,2]
[366426267,1750251047004,-1003.52,0.00016438,2]
[366426268,1750251047013,-1751.58,0.00016438,2]
[366426269,1750251047023,-499.49637407,0.00016438,2]
[366426270,1750251047033,-1003.52,0.00016438,2]
[366426271,1750251047042,-1003.52,0.00016438,2]
[366426272,1750251047051,-1003.52,0.00016438,2]
[366426273,1750251047061,-1003.52,0.00016438,2]
[366426274,1750251047070,-490.0,0.00016438,2]
[366426275,1750251047079,-876.25577982,0.00016438,2]
[366426276,1750251047870,-386.2949996,0.00016438,2]
[366426277,1750251047890,-283.7050004,0.00016438,2]
[366426278,1750251047900,-127.26422018,0.00016438,2]
[366426279,1750251047910,-914.78614825,0.00016438,2]
[366426280,1750251047922,-88.73385175,0.00016438,2]
[366426281,1750251047932,-151.0,0.00016438,2]
[366426282,1750251047941,-488.20466344,0.00016438,2]
[366426283,1750251047951,-151.0,0.00016438,2]
[366426284,1750251047960,-1896.37,0.00016438,2]
[366426285,1750251047969,-94.24657738,0.00016438,2]
[366426286,1750251067880,25510.964076,7.945e-05,2]
[366426289,1750251281481,205.0,0.00012393,2]
[366426290,1750251360626,200.17420888,0.00012331,2]
[366426291,1750251411095,697.0,0.0002465,120]
[366426293,1750251474881,443.0,0.0002465,120]
[366426294,1750251500351,1874.0,0.00024658,120]
[366426296,1750251597663,400.0,0.00024657,120]
[366426298,1750251642128,205.0,0.00012793,2]
[366426302,1750251761622,202.0,0.00012793,2]
[366426305,1750251820200,300.0,0.00018001,29]
[366426306,1750251851650,300.0,0.00024657,120]
[366426315,1750252185547,-205.0,0.00013224,2]
[366426316,1750252185571,-14.9244,0.00013224,2]
[366426326,1750252231772,-187.0756,0.00013224,2]
[366426329,1750252231784,-162.371147,0.00013594,2]
[366426331,1750252231798,-300.0,0.00013694,2]
[366426333,1750252231810,-180.36,0.00013699,2]
[366426335,1750252231822,-3021.062152,0.0001451,2]
[366426336,1750252231834,-300.0,0.00014583,2]
[366426337,1750252231846,-250.0,0.00014636,2]
[366426338,1750252231858,-1000.0,0.00014648,2]
[366426339,1750252231870,-220.2,0.00014656,2]
[366426340,1750252231882,-468.45,0.00014657,2]
[366426341,1750252231894,-1350.26,0.00014676,2]
[366426342,1750252231906,-205.0,0.00014685,3]
[366426343,1750252231919,-820.41,0.00014705,2]
[366426344,1750252231933,-243.37,0.00014707,2]
[366426345,1750252231944,-358.55,0.00014709,2]
[366426346,1750252231956,-312.42,0.00014726,2]
[366426347,1750252231970,-200.0,0.00014759,2]
[366426348,1750252231982,-1200.0,0.0001478,2]
[366426349,1750252231994,-500.0,0.0001478,2]
[366426350,1750252232006,-2101.25,0.00014781,2]
[366426351,1750252232018,-300.0,0.00014794,2]
[366426352,1750252232031,-22828.05,0.00014796,2]
[366426353,1750252232043,-169.77,0.00014797,2]
[366426354,1750252232055,-762.43,0.00014803,2]
[366426355,1750252232066,-154.94,0.00014821,2]
[366426356,1750252232078,-421.69,0.00014827,2]
[366426357,1750252232090,-767.99763752,0.000149,2]
[366426358,1750252232101,-151.0,0.00014901,2]
[366426360,1750252232113,-23900.0,0.0001491,2]
[366426362,1750252232126,-4206.27,0.00014953,2]
[366426363,1750252232138,-300.0,0.00014953,2]
[366426364,1750252232150,-151.0,0.00014956,2]
[366426365,1750252232163,-300.0,0.00015,2]
[366426366,1750252232175,-283.09327194,0.00015011,2]
[366426367,1750252232187,-300.0,0.00015059,2]
[366426368,1750252232199,-250.0,0.00015059,2]
[366426369,1750252232211,-767.99763749,0.00015072,2]
[366426372,1750252232224,-461.73,0.00015096,2]
[366426373,1750252232235,-797.71,0.00015096,2]
[366426374,1750252232247,-461.73,0.00015096,2]
[366426375,1750252232258,-797.71,0.00015096,2]
[366426376,1750252232271,-797.71,0.00015096,2]
[366426378,1750252232283,-461.73,0.00015096,2]
[366426380,1750252232295,-767.99763749,0.00015245,2]
[366426382,1750252232307,-152.0,0.00015364,3]
[366426384,1750252232319,-200.0,0.000154,7]
[366426387,1750252232330,-767.99763749,0.00015417,2]
[366426389,1750252232342,-1500.0,0.0001547,2]
[366426391,1750252232353,-168.0,0.00015493,2]
[366426393,1750252232365,-150.0,0.00015507,2]
[366426396,1750252232377,-767.99763749,0.0001559,2]
[366426398,1750252232388,-207.4,0.00015615,2]
[366426400,1750252232399,-1957.856,0.00015615,2]
[366426402,1750252232411,-151.0,0.00015615,2]
[366426404,1750252232422,-358.94,0.00015631,2]
[366426405,1750252232433,-167.12,0.00015631,2]
[366426406,1750252232444,-455.14,0.00015631,2]
[366426407,1750252232454,-1164.87,0.00015631,2]
[366426408,1750252232466,-633.23768593,0.00015662,2]
[366426409,1750252232477,-152.0,0.00015699,4]
[366426410,1750252232487,-767.99763749,0.00015762,2]
[366426411,1750252232498,-455.32,0.00015781,2]
[366426412,1750252232509,-163.42,0.00015781,2]
[366426413,1750252232520,-455.32,0.00015781,2]
[366426414,1750252232531,-455.32,0.00015781,2]
[366426415,1750252232541,-5205.80353111,0.000158,2]
[366426417,1750252232553,-150.0,0.00015915,2]
[366426419,1750252232565,-767.99763749,0.00015934,2]
[366426421,1750252232576,-453.99,0.00015945,2]
[366426423,1750252232587,-3959.2561,0.00015951,2]
[366426426,1750252232598,-168.0,0.00015974,2]
[366426428,1750252232609,-1000.0,0.00015982,2]
[366426430,1750252232621,-152.0,0.00016033,5]
[366426432,1750252232632,-152.51326046,0.00016047,2]
[366426434,1750252232643,-637.0,0.00016051,2]
[366426437,1750252232655,-803.0,0.00016051,2]
[366426439,1750252232668,-1277.0,0.00016051,2]
[366426441,1750252232679,-2003.0,0.00016051,2]
[366426443,1750252232690,-558.0,0.00016051,2]
[366426446,1750252232702,-953.82,0.00016051,2]
[366426448,1750252232714,-591.0,0.00016051,2]
[366426450,1750252232727,-1675.0,0.00016051,2]
[366426452,1750252232738,-461.73,0.00016055,2]
[366426454,1750252232751,-797.71,0.00016055,2]
[366426457,1750252232763,-927.67,0.00016055,2]
[366426459,1750252232774,-797.71,0.00016055,2]
[366426461,1750252232786,-461.07,0.00016055,2]
[366426463,1750252232798,-797.71,0.00016055,2]
[366426465,1750252232810,-797.71,0.00016055,2]
[366426468,1750252232824,-797.71,0.00016055,2]
[366426470,1750252232835,-150.0,0.00016065,2]
[366426472,1750252232846,-5030.283,0.00016094,2]
[366426474,1750252232857,-4092.0,0.00016094,2]
[366426476,1750252232870,-156.0,0.00016094,2]
[366426479,1750252232881,-855.0,0.00016094,2]
[366426481,1750252232892,-150.0,0.000161,2]
[366426483,1750252232903,-767.99763749,0.00016107,2]
[366426485,1750252232915,-168.0,0.00016122,2]
[366426487,1750252232929,-219.92441036,0.00016137,5]
[366426489,1750252232941,-77865.6939648,0.00016138,2]
[366426492,1750252232952,-205.0,0.00016147,5]
[366426494,1750252232963,-150.0,0.00016171,2]
[366426496,1750252232976,-150.0,0.00016177,2]
[366426498,1750252232987,-25955.21,0.0001619,2]
[366426500,1750252232998,-867.9924602,0.00016193,2]
[366426502,1750252233010,-420.0,0.00016195,2]
[366426504,1750252233020,-183.81691542,0.00016206,2]
[366426506,1750252233031,-500.0,0.00016252,2]
[366426509,1750252233043,-767.99763749,0.00016279,2]
[366426511,1750252233055,-3771.594,0.0001628,2]
[366426513,1750252233066,-556.87923795,0.00016285,2]
[366426515,1750252233078,-186.9702766,0.00016285,2]
[366426517,1750252233090,-208.97555342,0.00016285,2]
[366426520,1750252233101,-200.0,0.00016289,2]
[366426522,1750252233112,-825.01291439,0.00016291,2]
[366426524,1750252233124,-851.25412253,0.00016298,2]
[366426526,1750252233135,-179.0,0.000163,2]
[366426528,1750252233147,-179.0,0.000163,2]
[366426530,1750252233159,-179.0,0.000163,4]
[366426533,1750252233170,-179.86,0.000163,3]
[366426535,1750252233184,-77865.63,0.000163,2]
[366426537,1750252233195,-232.73641275,0.00016302,2]
[366426539,1750252233208,-2000.0,0.00016306,2]
[366426541,1750252233221,-2000.0,0.00016306,2]
[366426544,1750252233233,-2000.0,0.00016307,2]
[366426546,1750252233246,-2000.0,0.00016307,2]
[366426548,1750252233258,-500.0,0.00016307,2]
[366426550,1750252233271,-200.0,0.00016307,2]
[366426552,1750252233282,-2811.65014496,0.00016307,2]
[366426555,1750252233294,-200.0,0.00016308,2]
[366426557,1750252233305,-825.01291439,0.00016311,2]
[366426559,1750252233316,-232.73641275,0.00016312,2]
[366426561,1750252233328,-375.64764,0.00016312,2]
[366426563,1750252233340,-600.0,0.00016312,4]
[366426565,1750252233352,-150.82,0.00016312,2]
[366426568,1750252233363,-500.85,0.00016312,2]
[366426570,1750252233375,-150.15,0.00016312,2]
[366426572,1750252233387,-302.95,0.00016312,2]
[366426574,1750252233399,-825.01291439,0.00016314,2]
[366426576,1750252233412,-305.57,0.00016314,2]
[366426578,1750252233424,-300.55,0.00016314,2]
[366426581,1750252233435,-168.0,0.00016316,2]
[366426583,1750252233448,-506.27,0.00016319,2]
[366426585,1750252233459,-494.87,0.00016319,2]
[366426587,1750252233473,-500.19,0.00016319,2]
[366426658,1750252234170,-500.98,0.00016319,2]
[366426663,1750252234214,-851.25412253,0.00016323,2]
[366426667,1750252234247,-825.01291439,0.00016324,2]
[366426669,1750252234260,-200.0,0.00016324,2]
[366426671,1750252234270,-1389.86565333,0.00016329,2]
[366426673,1750252234280,-825.01291439,0.00016331,2]
[366426675,1750252234290,-825.01291439,0.00016338,2]
[366426677,1750252234301,-1000.0,0.00016338,2]
[366426679,1750252234311,-6745.84755261,0.00016338,2]
[366426681,1750252234321,-2811.65014496,0.00016354,2]
[366426683,1750252234332,-200.0,0.00016355,2]
[366426685,1750252234343,-152.0,0.00016368,6]
[366426687,1750252234353,-171.14,0.0001637,2]
[366426689,1750252234363,-171.14,0.0001637,2]
[366426691,1750252234374,-171.14,0.0001637,2]
[366426693,1750252234384,-171.14,0.0001637,2]
[366426695,1750252234395,-171.14,0.0001637,2]
[366426698,1750252234406,-171.14,0.0001637,2]
[366426700,1750252234416,-171.14,0.0001637,2]
[366426701,1750252234426,-171.14,0.0001637,2]
[366426703,1750252234435,-171.14,0.0001637,2]
[366426705,1750252234445,-171.14,0.0001637,2]
[366426708,1750252234455,-2811.65014496,0.00016374,2]
[366426710,1750252234466,-180.98309593,0.00016379,2]
[366426712,1750252234478,-179.04683635,0.00016379,2]
[366426714,1750252234488,-500.0,0.00016379,2]
[366426715,1750252234498,-438.97063486,0.00016379,2]
[366426718,1750252234508,-189.05897839,0.00016379,2]
[366426720,1750252234519,-634.57148956,0.00016379,2]
[366426722,1750252234528,-500.0,0.00016379,2]
[366426724,1750252234538,-500.0,0.00016379,2]
[366426726,1750252234548,-500.0,0.00016379,2]
[366426728,1750252234559,-500.0,0.00016379,2]
[366426730,1750252234569,-293.57586069,0.00016379,2]
[366426732,1750252234579,-500.0,0.00016379,2]
[366426734,1750252234589,-500.0,0.00016379,2]
[366426736,1750252234599,-500.0,0.00016379,2]
[366426737,1750252234609,-247.86254168,0.00016379,2]
[366426740,1750252234620,-500.0,0.00016379,2]
[366426742,1750252234630,-534.16188495,0.0001638,2]
[366426744,1750252234643,-41591.46443324,0.0001638,2]
[366426745,1750252234653,-181136.03831055,0.0001638,2]
[366426793,1750252235221,-53733.66146352,0.0001638,2]
[366426797,1750252235242,-3726.0,0.0001638,2]
[366426799,1750252235254,-3337.91951438,0.0001638,2]
[366426801,1750252235266,-292.54502165,0.0001638,2]
[366426804,1750252235285,-600.0,0.0001638,2]
[366427035,1750252237676,-264.13446512,0.00016271,2]
[366427038,1750252237686,-500.0,0.0001628,2]
[366427040,1750252237696,-52734.40242143,0.0001638,2]
[366427042,1750252237708,-2028.20149705,0.0001638,2]
[366427048,1750252237761,-2212.14033473,0.0001638,2]
[366427057,1750252237841,-357135.52730679,0.0001638,2]
[366427060,1750252237857,-1109.25673994,0.0001638,2]
[366427062,1750252237869,-2443.57586069,0.0001638,2]
[366427065,1750252237884,-1058.44386398,0.0001638,2]
[366427274,1750252239915,-1600.63502167,0.0001638,2]
[366427276,1750252239929,-763.8892603,0.0001638,2]
[366427288,1750252240040,-104410.0,0.0001638,2]
[366427294,1750252240087,-2992.13138281,0.0001638,2]
[366427305,1750252240189,-37663.50491569,0.0001638,2]
[366427313,1750252240259,-239819.28083715,0.0001638,2]
[366427315,1750252240268,-851.25412253,0.00016381,2]
[366427317,1750252240278,-171.14,0.00016383,2]
[366427319,1750252240287,-264.13446512,0.00016385,2]
[366427321,1750252240297,-1389.86565331,0.00016385,2]
[366427323,1750252240306,-264.13446512,0.00016387,2]
[366427325,1750252240315,-232.73641275,0.00016389,2]
[366427327,1750252240325,-6745.84755256,0.00016393,2]
[366427329,1750252240334,-173.892,0.00016394,2]
[366427331,1750252240344,-2357.019,0.00016394,2]
[366427333,1750252240353,-305.52,0.00016409,2]
[366427335,1750252240362,-171.14,0.00016419,2]
[366427337,1750252240371,-501.83,0.0001642,2]
[366427339,1750252240381,-491.31,0.0001642,2]
[366427341,1750252240390,-171.14,0.00016428,2]
[366427343,1750252240400,-171.14,0.00016428,2]
[366427345,1750252240409,-171.14,0.00016428,2]
[366427347,1750252240419,-171.14,0.00016428,2]
[366427349,1750252240428,-72024.9653542,0.00016429,2]
[366427351,1750252240438,-4766.9380079,0.00016429,2]
[366427352,1750252240448,-10466.6409639,0.00016429,2]
[366427353,1750252240457,-304.34,0.00016437,2]
[366427354,1750252240467,-492.57,0.00016438,2]
[366427355,1750252240477,-602.0,0.00016438,2]
[366427356,1750252240487,-833.92080167,0.00016438,2]
[366427357,1750252240497,-151.0,0.00016438,2]
[366427358,1750252240506,-151.0,0.00016438,2]
[366427360,1750252240515,-490.0,0.00016438,2]
[366427362,1750252240525,-1000.0,0.00016438,2]
[366427364,1750252240534,-815.26906002,0.00016438,2]
[366427366,1750252240544,-355.868964,0.00016438,2]
[366427368,1750252240553,-355.868964,0.00016438,2]
[366427370,1750252240563,-355.868964,0.00016438,2]
[366427372,1750252240573,-355.868964,0.00016438,2]
[366427374,1750252240582,-355.868964,0.00016438,2]
[366427376,1750252240592,-355.868964,0.00016438,2]
[366427378,1750252240601,-355.868964,0.00016438,2]
[366427380,1750252240610,-355.868964,0.00016438,2]
[366427382,1750252240621,-355.868964,0.00016438,2]
[366427384,1750252240630,-151.0,0.00016438,2]
[366427386,1750252240639,-151.0,0.00016438,2]
[366427388,1750252240649,-151.0,0.00016438,2]
[366427390,1750252240658,-151.0,0.00016438,2]
[366427392,1750252240667,-190.559272,0.00016438,2]
[366427394,1750252240677,-490.0,0.00016438,2]
[366427396,1750252240686,-151.0,0.00016438,2]
[366427398,1750252240697,-151.0,0.00016438,2]
[366427400,1750252240706,-151.0,0.00016438,2]
[366427402,1750252240718,-151.0,0.00016438,2]
[366427404,1750252240728,-151.0,0.00016438,2]
[366427406,1750252240737,-151.0,0.00016438,2]
[366427408,1750252240747,-151.0,0.00016438,2]
[366427410,1750252240758,-151.0,0.00016438,2]
[366427412,1750252240767,-151.0,0.00016438,2]
[366427414,1750252240776,-151.0,0.00016438,2]
[366427416,1750252240786,-219.232162,0.00016438,2]
[366427418,1750252240795,-490.0,0.00016438,2]
[366427420,1750252240805,-151.0,0.00016438,2]
[366427422,1750252240815,-151.0,0.00016438,2]
[366427424,1750252240824,-490.0,0.00016438,2]
[366427426,1750252240834,-151.0,0.00016438,2]
[366427428,1750252240844,-490.0,0.00016438,2]
[366427430,1750252240853,-151.0,0.00016438,2]
[366427432,1750252240863,-490.0,0.00016438,2]
[366427434,1750252240873,-490.0,0.00016438,2]
[366427436,1750252240882,-490.0,0.00016438,2]
[366427437,1750252240891,-490.0,0.00016438,2]
[366427439,1750252240901,-918.52,0.00016438,2]
[366427441,1750252240911,-490.0,0.00016438,2]
[366427444,1750252240923,-490.0,0.00016438,2]
[366427446,1750252240937,-490.0,0.00016438,2]
[366427447,1750252240947,-490.0,0.00016438,2]
[366427449,1750252240956,-490.0,0.00016438,2]
[366427451,1750252240966,-610.49,0.00016438,2]
[366427453,1750252240977,-1306.66,0.00016438,2]
[366427456,1750252240987,-151.0,0.00016438,2]
[366427458,1750252240996,-490.0,0.00016438,2]
[366427459,1750252241005,-490.0,0.00016438,2]
[366427462,1750252241015,-500.0,0.00016438,2]
[366427463,1750252241025,-500.0,0.00016438,2]
[366427465,1750252241034,-500.0,0.00016438,2]
[366427468,1750252241044,-490.0,0.00016438,2]
[366427469,1750252241053,-500.0,0.00016438,2]
[366427472,1750252241063,-500.0,0.00016438,2]
[366427474,1750252241073,-490.0,0.00016438,2]
[366427476,1750252241083,-490.0,0.00016438,2]
[366427478,1750252241092,-693.36,0.00016438,2]
[366427480,1750252241102,-490.0,0.00016438,2]
[366427482,1750252241111,-908.85,0.00016438,2]
[366427484,1750252241121,-490.0,0.00016438,2]
[366427486,1750252241130,-151.0,0.00016438,2]
[366427488,1750252241140,-172.045486,0.00016438,2]
[366427490,1750252241149,-490.0,0.00016438,2]
[366427492,1750252241158,-151.0,0.00016438,2]
[366427494,1750252241168,-1088.42,0.00016438,2]
[366427496,1750252241180,-490.0,0.00016438,2]
[366427498,1750252241195,-714.4,0.00016438,2]
[366427500,1750252241204,-201.31721911,0.00016438,2]
[366427502,1750252241214,-230.3879374,0.00016438,2]
[366427504,1750252241223,-1058.23,0.00016438,2]
[366427506,1750252241233,-599.12,0.00016438,2]
[366427508,1750252241242,-811.84,0.00016438,2]
[366427510,1750252241251,-490.0,0.00016438,2]
[366427512,1750252241261,-490.0,0.00016438,2]
[366427514,1750252241270,-557.16449886,0.00016438,2]
[366427516,1750252241279,-1469.76,0.00016438,2]
[366427518,1750252241289,-490.0,0.00016438,2]
[366427520,1750252241298,-490.0,0.00016438,2]
[366427522,1750252241308,-490.0,0.00016438,2]
[366427523,1750252241317,-595.61,0.00016438,2]
[366427525,1750252241326,-490.0,0.00016438,2]
[366427526,1750252241335,-490.0,0.00016438,2]
[366427528,1750252241345,-490.0,0.00016438,2]
[366427530,1750252241354,-490.0,0.00016438,2]
[366427531,1750252241363,-151.0,0.00016438,2]
[366427533,1750252241373,-151.0,0.00016438,2]
[366427535,1750252241383,-151.0,0.00016438,2]
[366427536,1750252241392,-151.0,0.00016438,2]
[366427538,1750252241401,-151.0,0.00016438,2]
[366427540,1750252241411,-490.0,0.00016438,2]
[366427541,1750252241419,-490.0,0.00016438,2]
[366427543,1750252241429,-490.0,0.00016438,2]
[366427545,1750252241439,-490.0,0.00016438,2]
[366427546,1750252241448,-490.0,0.00016438,2]
[366427548,1750252241458,-1528.25,0.00016438,2]
[366427550,1750252241467,-201.320719,0.00016438,2]
[366427551,1750252241477,-490.0,0.00016438,2]
[366427553,1750252241487,-521.3,0.00016438,2]
[366427555,1750252241497,-490.0,0.00016438,2]
[366427557,1750252241507,-492.65,0.00016438,2]
[366427558,1750252241517,-490.0,0.00016438,2]
[366427560,1750252241527,-237.224688,0.00016438,2]
[366427562,1750252241537,-529.68,0.00016438,2]
[366427564,1750252241546,-490.0,0.00016438,2]
[366427565,1750252241555,-707.8,0.00016438,2]
[366427567,1750252241565,-490.0,0.00016438,2]
[366427569,1750252241575,-490.0,0.00016438,2]
[366427570,1750252241584,-490.0,0.00016438,2]
[366427572,1750252241594,-821.35,0.00016438,2]
[366427573,1750252241604,-490.0,0.00016438,2]
[366427575,1750252241614,-490.0,0.00016438,2]
[366427577,1750252241624,-494.135658,0.00016438,2]
[366427579,1750252241635,-490.0,0.00016438,2]
[366427580,1750252241644,-490.0,0.00016438,2]
[366427582,1750252241654,-272.70687293,0.00016438,2]
[366427584,1750252241664,-151.0,0.00016438,2]
[366427585,1750252241673,-151.0,0.00016438,2]
[366427587,1750252241683,-151.0,0.00016438,2]
[366427589,1750252241694,-490.0,0.00016438,2]
[366427591,1750252241703,-151.0,0.00016438,2]
[366427593,1750252241714,-490.0,0.00016438,2]
[366427594,1750252241724,-655.04,0.00016438,2]
[366427596,1750252241734,-490.0,0.00016438,2]
[366427598,1750252241743,-490.0,0.00016438,2]
[366427600,1750252241753,-490.0,0.00016438,2]
[366427602,1750252241764,-490.0,0.00016438,2]
[366427604,1750252241774,-631.4,0.00016438,2]
[366427605,1750252241783,-1046.28,0.00016438,2]
[366427607,1750252241793,-501.77,0.00016438,2]
[366427609,1750252241803,-490.0,0.00016438,2]
[366427611,1750252241812,-732.44,0.00016438,2]
[366427612,1750252241821,-883.86,0.00016438,2]
[366427614,1750252241832,-490.0,0.00016438,2]
[366427616,1750252241841,-474.65469258,0.00016438,2]
[366427618,1750252241851,-490.0,0.00016438,2]
[366427620,1750252241861,-490.0,0.00016438,2]
[366427621,1750252241870,-997.26,0.00016438,2]
[366427623,1750252241881,-490.0,0.00016438,2]
[366427625,1750252241891,-490.0,0.00016438,2]
[366427627,1750252241900,-490.0,0.00016438,2]
[366427629,1750252241909,-525.55,0.00016438,2]
[366427630,1750252241923,-490.0,0.00016438,2]
[366427632,1750252241932,-969.71,0.00016438,2]
[366427634,1750252241941,-156.769797,0.00016438,2]
[366427636,1750252241952,-1764.26,0.00016438,2]
[366427637,1750252241963,-490.0,0.00016438,2]
[366427639,1750252241974,-151.0,0.00016438,2]
[366427641,1750252241984,-1948.29,0.00016438,2]
[366427643,1750252241995,-151.0,0.00016438,2]
[366427645,1750252242004,-151.0,0.00016438,2]
[366427646,1750252242013,-879.85,0.00016438,2]
[366427648,1750252242024,-838.19,0.00016438,2]
[366427650,1750252242033,-490.0,0.00016438,2]
[366427652,1750252242042,-151.0,0.00016438,2]
[366427654,1750252242052,-151.0,0.00016438,2]
[366427655,1750252242061,-490.0,0.00016438,2]
[366427657,1750252242070,-168.833446,0.00016438,2]
[366427659,1750252242080,-1298.86,0.00016438,2]
[366427661,1750252242090,-490.0,0.00016438,2]
[366427662,1750252242099,-490.0,0.00016438,2]
[366427664,1750252242108,-1066.3,0.00016438,2]
[366427666,1750252242118,-1281.27,0.00016438,2]
[366427668,1750252242128,-490.0,0.00016438,2]
[366427670,1750252242137,-524.9994521,0.00016438,2]
[366427671,1750252242147,-615.67129126,0.00016438,2]
[366427673,1750252242157,-490.0,0.00016438,2]
[366427675,1750252242167,-490.0,0.00016438,2]
[366427677,1750252242177,-654.72,0.00016438,2]
[366427679,1750252242186,-490.0,0.00016438,2]
[366427681,1750252242196,-490.0,0.00016438,2]
[366427683,1750252242206,-626.02,0.00016438,2]
[366427685,1750252242215,-490.0,0.00016438,2]
[366427687,1750252242225,-490.0,0.00016438,2]
[366427689,1750252242235,-714.79,0.00016438,2]
[366427691,1750252242244,-490.0,0.00016438,2]
[366427693,1750252242253,-828.21,0.00016438,2]
[366427695,1750252242262,-425.38893316,0.00016438,2]
[366427697,1750252242272,-828.21,0.00016438,2]
[366427699,1750252242281,-828.21,0.00016438,2]
[366427701,1750252242291,-624.69,0.00016438,2]
[366427703,1750252242301,-828.21,0.00016438,2]
[366427705,1750252242310,-490.0,0.00016438,2]
[366427706,1750252242319,-1002.36,0.00016438,2]
[366427707,1750252242328,-490.0,0.00016438,2]
[366427708,1750252242337,-490.0,0.00016438,2]
[366427709,1750252242346,-490.0,0.00016438,2]
[366427710,1750252242355,-490.0,0.00016438,2]
[366427711,1750252242364,-490.0,0.00016438,2]
[366427712,1750252242373,-490.0,0.00016438,2]
[366427713,1750252242382,-493.90134204,0.00016438,2]
[366427714,1750252242391,-562.59,0.00016438,2]
[366427715,1750252242401,-542.09,0.00016438,2]
[366427716,1750252242410,-490.0,0.00016438,2]
[366427717,1750252242419,-490.0,0.00016438,2]
[366427718,1750252242428,-637.84,0.00016438,2]
[366427719,1750252242437,-1162.41,0.00016438,2]
[366427720,1750252242446,-490.0,0.00016438,2]
[366427721,1750252242455,-1163.07,0.00016438,2]
[366427722,1750252242465,-490.0,0.00016438,2]
[366427724,1750252242474,-628.11,0.00016438,2]
[366427726,1750252242484,-2268.652289,0.00016438,2]
[366427728,1750252242493,-987.38,0.00016438,2]
[366427730,1750252242503,-607.58,0.00016438,2]
[366427732,1750252242512,-1226.85,0.00016438,2]
[366427734,1750252242523,-859.05,0.00016438,2]
[366427736,1750252242532,-697.82,0.00016438,2]
[366427738,1750252242541,-490.0,0.00016438,2]
[366427740,1750252242551,-568.45,0.00016438,2]
[366427742,1750252242560,-490.0,0.00016438,2]
[366427744,1750252242570,-576.29,0.00016438,2]
[366427746,1750252242579,-490.0,0.00016438,2]
[366427748,1750252242589,-300.0,0.00016438,2]
[366427750,1750252242598,-557.92,0.00016438,2]
[366427752,1750252242608,-1659.36,0.00016438,2]
[366427754,1750252242617,-1001.49,0.00016438,2]
[366427756,1750252242626,-617.8,0.00016438,2]
[366427758,1750252242636,-1183.99,0.00016438,2]
[366427760,1750252242646,-490.0,0.00016438,2]
[366427762,1750252242656,-490.0,0.00016438,2]
[366427765,1750252242666,-490.0,0.00016438,2]
[366427767,1750252242676,-1014.93,0.00016438,2]
[366427769,1750252242686,-490.0,0.00016438,2]
[366427771,1750252242696,-315.2,0.00016438,2]
[366427773,1750252242706,-490.0,0.00016438,2]
[366427775,1750252242716,-1188.9,0.00016438,2]
[366427777,1750252242725,-151.0,0.00016438,2]
[366427778,1750252242735,-707.0,0.00016438,2]
[366427781,1750252242745,-151.0,0.00016438,2]
[366427783,1750252242755,-151.0,0.00016438,2]
[366427785,1750252242764,-151.0,0.00016438,2]